fUST/lending_fUST_20260409
["ID","MTS","AMOUNT","RATE_DAILY","PERIOD"]
[420138015,1775710232005,-868.3829567,0.00018768,2]
[420138016,1775710232014,-718.0996346,0.00018768,2]
[420138017,1775710232023,-628.1209893,0.00018768,2]
[420138018,1775710232033,-508.36852911,0.00018884,2]
[420138019,1775710232043,-567.65446837,0.00018884,2]
[420138020,1775710232052,-500.0,0.00018884,2]
[420138021,1775710232061,-500.0,0.00018884,2]
[420138022,1775710232071,-500.0,0.00018884,2]
[420138023,1775710232081,-500.0,0.00018884,2]
[420138024,1775710232090,-500.0,0.00018884,2]
[420138025,1775710232100,-500.0,0.00018884,2]
[420138026,1775710232109,-500.0,0.00018884,2]
[420138027,1775710232119,-500.0,0.00018884,2]
[420138028,1775710232128,-500.0,0.00018884,2]
[420138029,1775710232138,-500.0,0.00018884,2]
[420138030,1775710232147,-500.0,0.00018884,2]
[420138031,1775710232156,-500.0,0.00018884,2]
[420138032,1775710232166,-500.0,0.00018884,2]
[420138033,1775710232176,-500.0,0.00018884,2]
[420138034,1775710232186,-500.0,0.00018884,2]
[420138035,1775710232195,-500.0,0.00018884,2]
[420138036,1775710232204,-500.0,0.00018884,2]
[420138037,1775710232214,-500.0,0.00018884,2]
[420138038,1775710232223,-500.0,0.00018884,2]
[420138039,1775710232233,-500.0,0.00018884,2]
[420138040,1775710232242,-500.0,0.00018884,2]
[420138041,1775710232251,-500.0,0.00018884,2]
[420138042,1775710232261,-500.0,0.00018884,2]
[420138043,1775710232271,-500.0,0.00018884,2]
[420138044,1775710232281,-500.0,0.00018884,2]
[420138045,1775710232290,-500.0,0.00018884,2]
[420138046,1775710232299,-500.0,0.00018884,2]
[420138047,1775710232309,-314.72442146,0.00018884,2]
[420138048,1775710232323,-185.27557854,0.00018884,2]
[420138049,1775710232332,-353.93177296,0.00018884,2]
[420138050,1775710232344,-146.06822704,0.00018884,2]
[420138051,1775710232564,-292.16674224,0.00018884,2]
[420138052,1775710232576,-207.83325776,0.00018884,2]
[420138053,1775710232586,-500.0,0.00018884,2]
[420138054,1775710232595,-200.23319195,0.00018884,2]
[420138055,1775710232606,-299.76680805,0.00018884,2]
[420138056,1775710232616,-72.43045916,0.00018884,2]
[420138062,1775710238302,-427.56954084,0.00018884,2]
[420138063,1775710238312,-500.0,0.00018884,2]
[420138064,1775710238322,-500.0,0.00018884,2]
[420138065,1775710238332,-500.0,0.00018884,2]
[420138066,1775710238342,-500.0,0.00018884,2]
[420138067,1775710238351,-500.0,0.00018884,2]
[420138068,1775710238360,-500.0,0.00018884,2]
[420138069,1775710238370,-500.0,0.00018884,2]
[420138070,1775710238380,-500.0,0.00018884,2]
[420138071,1775710238389,-500.0,0.00018884,2]
[420138072,1775710238399,-514.24339011,0.00018884,2]
[420138073,1775710238408,-500.0,0.00018884,2]
[420138074,1775710238418,-500.0,0.00018884,2]
[420138075,1775710238427,-500.0,0.00018884,2]
[420138076,1775710238437,-500.0,0.00018884,2]
[420138077,1775710238447,-500.0,0.00018884,2]
[420138078,1775710238456,-500.0,0.00018884,2]
[420138079,1775710238465,-500.0,0.00018884,2]
[420138080,1775710238475,-500.0,0.00018884,2]
[420138081,1775710238484,-500.0,0.00018884,2]
[420138082,1775710238495,-500.0,0.00018884,2]
[420138083,1775710238504,-500.0,0.00018884,2]
[420138084,1775710238514,-500.0,0.00018884,2]
[420138085,1775710238523,-500.0,0.00018884,2]
[420138086,1775710238533,-500.0,0.00018884,2]
[420138087,1775710238542,-500.0,0.00018884,2]
[420138088,1775710238552,-500.0,0.00018884,2]
[420138089,1775710238562,-500.0,0.00018884,2]
[420138090,1775710238571,-500.0,0.00018884,2]
[420138091,1775710238580,-300.0,0.00018884,2]
[420138092,1775710238590,-500.0,0.00018884,2]
[420138093,1775710238599,-411.57663254,0.00018884,2]
[420138094,1775710238611,-88.42336746,0.00018884,2]
[420138095,1775710238620,-500.0,0.00018884,2]
[420138096,1775710238629,-500.0,0.00018884,2]
[420138097,1775710238639,-500.0,0.00018884,2]
[420138098,1775710238648,-500.0,0.00018884,2]
[420138099,1775710238657,-500.0,0.00018884,2]
[420138100,1775710238667,-500.0,0.00018884,2]
[420138101,1775710238676,-500.0,0.00018884,2]
[420138102,1775710238685,-500.0,0.00018884,2]
[420138103,1775710238694,-500.0,0.00018884,2]
[420138104,1775710238703,-500.0,0.00018884,2]
[420138105,1775710238712,-500.0,0.00018884,2]
[420138106,1775710238722,-500.0,0.00018884,2]
[420138107,1775710238731,-500.0,0.00018884,2]
[420138108,1775710238740,-500.0,0.00018884,2]
[420138109,1775710238750,-500.0,0.00018884,2]
[420138110,1775710238759,-500.0,0.00018884,2]
[420138111,1775710238768,-500.0,0.00018884,2]
[420138112,1775710238777,-500.0,0.00018884,2]
[420138113,1775710238787,-500.0,0.00018884,2]
[420138114,1775710238797,-500.0,0.00018884,2]
[420138115,1775710238806,-500.0,0.00018884,2]
[420138116,1775710238817,-500.0,0.00018884,2]
[420138117,1775710238826,-500.0,0.00018884,2]
[420138118,1775710238836,-500.0,0.00018884,2]
[420138119,1775710238846,-500.0,0.00018884,2]
[420138120,1775710238856,-500.0,0.00018884,2]
[420138121,1775710238865,-500.0,0.00018884,2]
[420138122,1775710238875,-500.0,0.00018884,2]
[420138123,1775710238884,-500.0,0.00018884,2]
[420138124,1775710238893,-500.0,0.00018884,2]
[420138125,1775710238903,-500.0,0.00018884,2]
[420138126,1775710238912,-500.0,0.00018884,2]
[420138127,1775710238922,-500.0,0.00018884,2]
[420138128,1775710238931,-500.0,0.00018884,2]
[420138129,1775710238941,-500.0,0.00018884,2]
[420138130,1775710238950,-500.0,0.00018884,2]
[420138131,1775710238960,-500.0,0.00018884,2]
[420138132,1775710238970,-500.0,0.00018884,2]
[420138133,1775710238979,-353.82303257,0.00018884,2]
[420138134,1775710238988,-500.0,0.00018884,2]
[420138135,1775710238998,-500.0,0.00018884,2]
[420138136,1775710239007,-500.0,0.00018884,2]
[420138137,1775710239016,-500.0,0.00018884,2]
[420138138,1775710239026,-500.0,0.00018884,2]
[420138139,1775710239035,-500.0,0.00018884,2]
[420138140,1775710239045,-500.0,0.00018884,2]
[420138141,1775710239055,-500.0,0.00018884,2]
[420138142,1775710239065,-500.0,0.00018884,2]
[420138143,1775710239075,-500.0,0.00018884,2]
[420138144,1775710239084,-500.0,0.00018884,2]
[420138145,1775710239093,-500.0,0.00018884,2]
[420138146,1775710239103,-500.0,0.00018884,2]
[420138147,1775710239112,-500.0,0.00018884,2]
[420138148,1775710239122,-500.0,0.00018884,2]
[420138149,1775710239131,-500.0,0.00018884,2]
[420138150,1775710239141,-500.0,0.00018884,2]
[420138151,1775710239150,-351.84475957,0.00018884,2]
[420138152,1775710239159,-500.0,0.00018884,2]
[420138153,1775710239168,-500.0,0.00018884,2]
[420138154,1775710239178,-500.0,0.00018884,2]
[420138155,1775710239188,-500.0,0.00018884,2]
[420138156,1775710239197,-500.0,0.00018884,2]
[420138157,1775710239206,-500.0,0.00018884,2]
[420138158,1775710239461,-500.0,0.00018884,2]
[420138159,1775710239471,-500.0,0.00018884,2]
[420138160,1775710239481,-500.0,0.00018884,2]
[420138161,1775710239490,-500.0,0.00018884,2]
[420138162,1775710239499,-500.0,0.00018884,2]
[420138163,1775710239508,-500.0,0.00018884,2]
[420138164,1775710239518,-500.0,0.00018884,2]
[420138165,1775710239527,-500.0,0.00018884,2]
[420138166,1775710239537,-151.0,0.00018884,2]
[420138167,1775710239546,-151.0,0.00018884,2]
[420138168,1775710239555,-151.0,0.00018884,2]
[420138169,1775710239564,-151.0,0.00018884,2]
[420138170,1775710239573,-151.0,0.00018884,2]
[420138171,1775710239582,-95156.77853417,0.00018885,2]
[420138172,1775710239595,-1138.08360464,0.00018885,2]
[420138248,1775710240817,-3861.91639536,0.00018885,2]
[420138351,1775710246130,-1310.75920535,0.00018885,2]
[420138352,1775710246142,-5152.47188355,0.00018885,2]
[420138371,1775710881359,-1000.0,0.00013699,2]
[420138372,1775710898032,-408.53443878,0.00016377,2]
[420138373,1775710898059,-936.54974799,0.00016377,2]
[420138374,1775710898072,-408.53443878,0.00016377,2]
[420138375,1775710898083,-287.41943059,0.00016377,2]
[420138376,1775710898092,-300.0,0.00016438,2]
[420138377,1775710898102,-179.048237,0.00016888,2]
[420138378,1775710927183,-866.03594977,0.00013699,2]
[420138381,1775710968347,9491.26843453,0.0001,10]
[420138382,1775710968369,508.73156547,0.0001,10]
[420138383,1775710974934,10000.0,0.0001,10]
[420138384,1775710983480,9491.26843453,0.0001,10]
[420138385,1775710983502,508.73156547,0.0001,10]
[420138387,1775711003175,1162.0,0.0001,10]
[420138482,1775711432756,-828.0,0.00013425,2]
[420138484,1775711432765,-1899.47473491,0.00013426,2]
[420138639,1775711441048,-2243.08747746,0.00013426,2]
[420138640,1775711441170,-243.56003054,0.00013426,2]
[420138641,1775711441180,-611.0,0.00013426,2]
[420138642,1775711441189,-734.78455242,0.00013699,2]
[420138643,1775711441201,-265.21544758,0.00013699,2]
[420138644,1775711441210,-76.22861584,0.00015,2]
[420138645,1775711441221,-174.23369515,0.00015,2]
[420138646,1775711441232,-300.0,0.00016438,2]
[420138647,1775711441241,-6983.67855624,0.000169,2]
[420138648,1775711441986,-42206.30242634,0.000169,2]
[420138649,1775711441997,-2531.07714629,0.000169,2]
[420138650,1775711442009,-4156.70579544,0.000169,2]
[420138651,1775711442019,-465.676775,0.00016943,2]
[420138652,1775711442028,-300.0,0.00016968,2]
[420138653,1775711442037,-300.0,0.00016968,2]
[420138654,1775711442046,-300.0,0.00016968,2]
[420138655,1775711442055,-500.0,0.00016969,2]
[420138656,1775711442064,-500.0,0.00016969,2]
[420138657,1775711442073,-372.42719551,0.00016969,2]
[420138658,1775711442082,-500.0,0.00016969,2]
[420138659,1775711442091,-500.0,0.00016969,2]
[420138661,1775711442101,-500.0,0.00016969,2]
[420138663,1775711442110,-500.0,0.00016969,2]
[420138665,1775711442119,-500.0,0.00016969,2]
[420138667,1775711442128,-491.96736252,0.00016969,2]
[420138668,1775711442137,-500.0,0.00016969,2]
[420138669,1775711442146,-500.0,0.00016969,2]
[420138670,1775711442155,-500.0,0.00016969,2]
[420138671,1775711442164,-500.0,0.00016969,2]
[420138672,1775711442173,-500.0,0.00016969,2]
[420138673,1775711442182,-500.0,0.00016969,2]
[420138674,1775711442191,-500.0,0.00016969,2]
[420138675,1775711442200,-500.0,0.00016969,2]
[420138676,1775711442209,-600.0,0.00016969,2]
[420138677,1775711442218,-500.0,0.00016969,2]
[420138678,1775711442227,-550.0,0.00016969,2]
[420138679,1775711442236,-5856.370812,0.0001697,2]
[420138680,1775711442245,-4616.4937557,0.00017146,2]
[420138681,1775711442254,-5086.7083489,0.00017146,2]
[420138682,1775711442263,-177.9051872,0.00017428,2]
[420138683,1775711442272,-330.0,0.00017964,2]
[420138684,1775711442282,-6925.53481928,0.00018,2]
[420138685,1775711442290,-420.0,0.00018533,2]
[420138686,1775711442300,-500.0,0.00018579,2]
[420138687,1775711442308,-327.28230974,0.00018579,2]
[420138688,1775711442317,-500.0,0.00018579,2]
[420138689,1775711442327,-500.0,0.00018579,2]
[420138690,1775711442336,-500.0,0.00018579,2]
[420138691,1775711442345,-211.25171912,0.00018579,2]
[420138692,1775711442354,-262.62872601,0.00018579,2]
[420138693,1775711442364,-500.0,0.00018579,2]
[420138694,1775711442373,-500.0,0.00018579,2]
[420138695,1775711442382,-500.0,0.00018579,2]
[420138696,1775711442391,-500.0,0.00018579,2]
[420138697,1775711442400,-290.32600725,0.00018579,2]
[420138698,1775711442409,-500.0,0.00018579,2]
[420138699,1775711442418,-500.0,0.00018579,2]
[420138700,1775711442427,-500.0,0.00018579,2]
[420138701,1775711442436,-500.0,0.00018579,2]
[420138702,1775711442446,-500.0,0.00018579,2]
[420138703,1775711442455,-500.0,0.00018579,2]
[420138704,1775711442465,-500.0,0.00018579,2]
[420138705,1775711442475,-500.0,0.00018579,2]
[420138706,1775711442484,-168.23480473,0.00018579,2]
[420138707,1775711442494,-294.17037885,0.0001858,2]
[420138708,1775711442505,-3768.18521745,0.0001858,2]
[420138746,1775711443400,-880.54457546,0.0001858,2]
[420138748,1775711443413,-16460.20556883,0.0001858,2]
[420138751,1775711443425,-1246.62269966,0.0001858,2]
[420138753,1775711443437,-7477.49666069,0.0001858,2]
[420138755,1775711443449,-760.69687761,0.0001858,2]
[420138757,1775711443461,-1504.3502,0.0001858,2]
[420138759,1775711443473,-454.96465952,0.0001858,2]
[420138801,1775711446280,-1682.634186,0.000185,2]
[420138802,1775711446290,-68346.83553174,0.0001858,2]
[420138803,1775711446299,-500.0,0.00018673,2]
[420138804,1775711446308,-500.0,0.00018673,2]
[420138805,1775711446317,-5651.27579649,0.00018682,2]
[420138898,1775712632322,-1000.0,0.00013699,2]
[420138900,1775712632331,-603.84473326,0.00014175,2]
[420138902,1775712632340,-1129.42624014,0.00015021,3]
[420138904,1775712632349,-300.0,0.00016438,2]
[420138906,1775712632358,-1059.04643897,0.00017003,3]
[420138908,1775712632367,-330.0,0.00017964,2]
[420138909,1775712632376,-500.0,0.0001818,2]
[420138910,1775712632386,-868.3829567,0.00018348,2]
[420138911,1775712632395,-1117.9608608,0.00018348,2]
[420138912,1775712632404,-126.69286642,0.00018479,2]
[420138913,1775712632415,-430.64833624,0.00018479,2]
[420138914,1775712632423,-151.0,0.00018578,2]
[420138915,1775712632432,-5.80367381,0.00018578,2]
[420138916,1775712632444,-294.19632619,0.00018578,2]
[420138917,1775712632452,-151.0,0.00018579,2]
[420138918,1775712632461,-86.31440036,0.00018579,2]
[420138919,1775712632472,-64.68559964,0.00018579,2]
[420138920,1775712632481,-151.0,0.00018579,2]
[420138921,1775712632490,-151.0,0.00018579,2]
[420138922,1775712632499,-59.29313308,0.0001858,2]
[420139000,1775712641166,-91.70686692,0.0001858,2]
[420139002,1775712641176,-151.0,0.0001858,2]
[420139004,1775712641185,-151.0,0.0001858,2]
[420139006,1775712641194,-58.57980724,0.0001858,2]
[420139060,1775712646421,-92.42019276,0.0001858,2]
[420139061,1775712646430,-696.0,0.0001858,2]
[420139062,1775712646440,-191.622183,0.00018679,2]
[420139063,1775712646450,-151.0,0.00018679,2]
[420139064,1775712646459,-151.0,0.00018679,2]
[420139065,1775712646468,-151.0,0.00018679,2]
[420139066,1775712646477,-151.0,0.00018679,2]
[420139067,1775712646486,-151.0,0.00018679,2]
[420139068,1775712646496,-151.0,0.00018679,2]
[420139069,1775712646505,-300.0,0.000188,2]
[420139070,1775712646515,-1195.0,0.0001883,5]
[420139071,1775712646524,-4450.31015991,0.0001883,5]
[420139072,1775712646535,-6878.68984009,0.0001883,5]
[420139073,1775712646544,-151.0,0.0001883,2]
[420139074,1775712646553,-151.0,0.0001883,2]
[420139075,1775712646563,-267.471594,0.0001883,2]
[420139076,1775712646572,-151.0,0.0001883,2]
[420139077,1775712646581,-151.0,0.0001883,2]
[420139078,1775712646590,-151.0,0.0001883,2]
[420139079,1775712646599,-384.52160141,0.00018884,2]
[420139080,1775712646609,-502.04921237,0.00018884,2]
[420139081,1775712646618,-2008.19684947,0.00018884,2]
[420139082,1775712646627,-1000.0,0.00019,2]
[420139083,1775712646636,-373.88117683,0.0001905,2]
[420139084,1775712646645,-500.0,0.00019177,2]
[420139085,1775712646655,-500.0,0.00019177,2]
[420139086,1775712646664,-500.0,0.00019177,2]
[420139087,1775712646674,-500.0,0.00019177,2]
[420139088,1775712646684,-500.0,0.00019177,2]
[420139089,1775712646693,-500.0,0.00019177,2]
[420139090,1775712646703,-500.0,0.00019177,2]
[420139091,1775712646712,-500.0,0.00019177,2]
[420139092,1775712646721,-500.0,0.00019177,2]
[420139093,1775712646730,-500.0,0.00019177,2]
[420139094,1775712646739,-500.0,0.00019177,2]
[420139095,1775712646752,-500.0,0.00019177,2]
[420139096,1775712646761,-500.0,0.00019177,2]
[420139097,1775712646771,-500.0,0.00019177,2]
[420139098,1775712646780,-500.0,0.00019177,2]
[420139099,1775712646790,-500.0,0.00019177,2]
[420139100,1775712646799,-500.0,0.00019177,2]
[420139101,1775712646808,-500.0,0.00019177,2]
[420139102,1775712646817,-500.0,0.00019177,2]
[420139103,1775712646827,-500.0,0.00019177,2]
[420139104,1775712646836,-500.0,0.00019177,2]
[420139105,1775712646845,-500.0,0.00019177,2]
[420139106,1775712646855,-500.0,0.00019177,2]
[420139107,1775712647122,-500.0,0.00019177,2]
[420139108,1775712647132,-500.0,0.00019177,2]
[420139109,1775712647142,-500.0,0.00019177,2]
[420139110,1775712647152,-500.0,0.00019177,2]
[420139111,1775712647161,-373.48976039,0.00019177,2]
[420139112,1775712647173,-126.51023961,0.00019177,2]
[420139113,1775712647183,-500.0,0.00019177,2]
[420139114,1775712647192,-500.0,0.00019177,2]
[420139115,1775712647201,-500.0,0.00019177,2]
[420139116,1775712647211,-500.0,0.00019177,2]
[420139117,1775712647220,-478.20081518,0.00019177,2]
[420139118,1775712647229,-500.0,0.00019177,2]
[420139119,1775712647239,-500.0,0.00019177,2]
[420139120,1775712647248,-500.0,0.00019177,2]
[420139121,1775712647257,-500.0,0.00019177,2]
[420139122,1775712647267,-500.0,0.00019177,2]
[420139123,1775712647276,-476.31592305,0.00019177,2]
[420139124,1775712647287,-23.68407695,0.00019177,2]
[420139125,1775712647296,-313.51592305,0.00019177,2]
[420139135,1775713052331,593.0,0.0001,10]
[420139208,1775713833685,-976.25152329,0.00013699,2]
[420139210,1775713833696,-23.74847671,0.00013699,2]
[420139211,1775713833706,-295.46767002,0.0001561,2]
[420139212,1775713833715,-300.0,0.00016438,2]
[420139213,1775713833725,-150.79239765,0.00017064,2]
[420139217,1775713839006,-1385.75592158,0.00017064,2]
[420139218,1775713839015,-6493.438397,0.00017529,2]
[420139219,1775713839025,-300.0,0.00017932,2]
[420139220,1775713839034,-1127.23128463,0.00017933,2]
[420139221,1775713839044,-178.526557,0.00017939,2]
[420139222,1775713839054,-4513.9244684,0.00017963,2]
[420139223,1775713839063,-2100.0,0.00018134,2]
[420139224,1775713839073,-1267.28274064,0.00018614,2]
[420139225,1775713839082,-500.0,0.000188,2]
[420139226,1775713839092,-500.0,0.000188,2]
[420139227,1775713839101,-500.0,0.000188,2]
[420139228,1775713839110,-500.0,0.000188,2]
[420139229,1775713839120,-500.0,0.000188,2]
[420139230,1775713839130,-500.0,0.000188,2]
[420139231,1775713839139,-489.07413307,0.000188,2]
[420139232,1775713839149,-500.0,0.00018829,2]
[420139233,1775713839159,-3353.02895809,0.00018873,2]
[420139234,1775713839168,-500.0,0.00018972,2]
[420139235,1775713839178,-500.0,0.00018972,2]
[420139236,1775713839188,-500.0,0.00018972,2]
[420139237,1775713839197,-500.0,0.00018972,2]
[420139238,1775713839207,-500.0,0.00018972,2]
[420139239,1775713839216,-500.0,0.00018972,2]
[420139240,1775713839225,-500.0,0.00018972,2]
[420139241,1775713839235,-500.0,0.00018972,2]
[420139242,1775713839244,-500.0,0.00018972,2]
[420139243,1775713839253,-500.0,0.00018972,2]
[420139244,1775713839263,-500.0,0.00018972,2]
[420139245,1775713839272,-500.0,0.00018972,2]
[420139246,1775713839282,-500.0,0.00018972,2]
[420139247,1775713839292,-500.0,0.00018972,2]
[420139248,1775713839301,-500.0,0.00018972,2]
[420139249,1775713839310,-500.0,0.00018972,2]
[420139250,1775713839319,-500.0,0.00018972,2]
[420139251,1775713839329,-500.0,0.00018972,2]
[420139252,1775713839338,-500.0,0.00018972,2]
[420139253,1775713839350,-500.0,0.00018972,2]
[420139254,1775713839360,-500.0,0.00018972,2]
[420139255,1775713839369,-500.0,0.00018972,2]
[420139256,1775713839378,-500.0,0.00018972,2]
[420139257,1775713839389,-500.0,0.00018972,2]
[420139258,1775713839398,-500.0,0.00018972,2]
[420139259,1775713839407,-500.0,0.00018972,2]
[420139260,1775713839416,-500.0,0.00018972,2]
[420139261,1775713839426,-235.06282227,0.00018972,2]
[420139262,1775713839437,-264.93717773,0.00018972,2]
[420139263,1775713839446,-500.0,0.00018972,2]
[420139264,1775713839455,-500.0,0.00018972,2]
[420139265,1775713839464,-500.0,0.00018972,2]
[420139266,1775713839474,-500.0,0.00018972,2]
[420139267,1775713839483,-500.0,0.00018972,2]
[420139268,1775713839493,-500.0,0.00018972,2]
[420139269,1775713839502,-500.0,0.00018972,2]
[420139270,1775713839512,-500.0,0.00018972,2]
[420139271,1775713839521,-500.0,0.00018972,2]
[420139272,1775713839530,-500.0,0.00018972,2]
[420139273,1775713839540,-500.0,0.00018972,2]
[420139274,1775713839550,-500.0,0.00018972,2]
[420139275,1775713839559,-500.0,0.00018972,2]
[420139276,1775713839569,-500.0,0.00018972,2]
[420139277,1775713839578,-500.0,0.00018972,2]
[420139278,1775713839588,-500.0,0.00018972,2]
[420139279,1775713839598,-500.0,0.00018972,2]
[420139280,1775713839607,-500.0,0.00018972,2]
[420139281,1775713839616,-500.0,0.00018972,2]
[420139282,1775713839626,-500.0,0.00018972,2]
[420139283,1775713839635,-500.0,0.00018972,2]
[420139284,1775713839645,-500.0,0.00018972,2]
[420139285,1775713839655,-500.0,0.00018972,2]
[420139286,1775713839664,-500.0,0.00018972,2]
[420139287,1775713839674,-500.0,0.00018972,2]
[420139288,1775713839684,-500.0,0.00018972,2]
[420139289,1775713839693,-467.80286411,0.00018972,2]
[420139290,1775713839702,-500.0,0.00018972,2]
[420139291,1775713839711,-500.0,0.00018972,2]
[420139292,1775713839720,-500.0,0.00018972,2]
[420139293,1775713839729,-500.0,0.00018972,2]
[420139294,1775713839738,-500.0,0.00018972,2]
[420139295,1775713839747,-500.0,0.00018972,2]
[420139296,1775713839757,-500.0,0.00018972,2]
[420139297,1775713839766,-500.0,0.00018972,2]
[420139298,1775713839775,-500.0,0.00018972,2]
[420139299,1775713839785,-500.0,0.00018972,2]
[420139300,1775713839794,-500.0,0.00018972,2]
[420139301,1775713839803,-500.0,0.00018972,2]
[420139302,1775713839813,-500.0,0.00018972,2]
[420139303,1775713839822,-500.0,0.00018972,2]
[420139304,1775713839832,-500.0,0.00018972,2]
[420139305,1775713839842,-500.0,0.00018972,2]
[420139306,1775713839851,-500.0,0.00018972,2]
[420139307,1775713839861,-500.0,0.00018972,2]
[420139308,1775713839870,-500.0,0.00018972,2]
[420139309,1775713839880,-500.0,0.00018972,2]
[420139310,1775713839890,-500.0,0.00018972,2]
[420139311,1775713839900,-500.0,0.00018972,2]
[420139312,1775713839909,-500.0,0.00018972,2]
[420139313,1775713839918,-500.0,0.00018972,2]
[420139314,1775713839928,-175.23718063,0.00018972,2]
[420139315,1775713839937,-500.0,0.00018972,2]
[420139316,1775713839947,-500.0,0.00018972,2]
[420139317,1775713839957,-500.0,0.00018972,2]
[420139318,1775713839967,-500.0,0.00018972,2]
[420139319,1775713839976,-500.0,0.00018972,2]
[420139320,1775713839986,-500.0,0.00018972,2]
[420139321,1775713839996,-500.0,0.00018972,2]
[420139322,1775713840006,-631.74774789,0.00018972,2]
[420139323,1775713840016,-500.0,0.00018972,2]
[420139324,1775713840025,-500.0,0.00018972,2]
[420139325,1775713840036,-500.0,0.00018972,2]
[420139326,1775713840045,-500.0,0.00018972,2]
[420139327,1775713840055,-500.0,0.00018972,2]
[420139328,1775713840065,-500.0,0.00018972,2]
[420139329,1775713840075,-500.0,0.00018972,2]
[420139330,1775713840084,-500.0,0.00018972,2]
[420139331,1775713840093,-500.0,0.00018972,2]
[420139332,1775713840102,-500.0,0.00018972,2]
[420139333,1775713840111,-500.0,0.00018972,2]
[420139334,1775713840120,-500.0,0.00018972,2]
[420139335,1775713840131,-500.0,0.00018972,2]
[420139336,1775713840140,-500.0,0.00018972,2]
[420139337,1775713840150,-500.0,0.00018972,2]
[420139338,1775713840159,-151.0,0.00018974,2]
[420139339,1775713840168,-151.0,0.00018974,2]
[420139340,1775713840178,-272.40049888,0.00018974,2]
[420139341,1775713840188,-229.09761682,0.00018974,2]
[420139342,1775713840197,-500.0,0.00018974,2]
[420139343,1775713840206,-500.0,0.00018974,2]
[420139344,1775713840216,-500.0,0.00018974,2]
[420139345,1775713840225,-500.0,0.00018974,2]
[420139346,1775713840234,-500.0,0.00018974,2]
[420139347,1775713840244,-583.84010821,0.00018974,2]
[420139348,1775713840254,-500.0,0.00018974,2]
[420139349,1775713840264,-500.0,0.00018974,2]
[420139350,1775713840274,-403.22820508,0.00018974,2]
[420139351,1775713840283,-500.0,0.00018974,2]
[420139352,1775713840293,-500.0,0.00018974,2]
[420139353,1775713840302,-450.0,0.00018974,2]
[420139354,1775713840312,-151.0,0.00018975,2]
[420139355,1775713840321,-4059.64529171,0.00018975,2]
[420139356,1775713840334,-2868.45973137,0.00018975,2]
[420139357,1775713840343,-16173.85422508,0.00018975,2]
[420139486,1775713841916,-300.0,0.00016438,2]
[420139488,1775713841925,-82253.7242108,0.00018975,2]
[420139657,1775713843813,-330.0,0.00017964,2]
[420139659,1775713843823,-4257.0657763,0.00018975,2]
[420139661,1775713843835,-1335.28898699,0.00018975,2]
[420139663,1775713843847,-2682.75126377,0.00018975,2]
[420139665,1775713843859,-399.66160388,0.00018975,2]
[420139667,1775713843871,-6815.79034485,0.00018975,2]
[420139670,1775713843883,-302.62139999,0.00018975,2]
[420139934,1775713846847,-3461.98481347,0.00018975,2]
[420139936,1775713846859,-5324.46837274,0.00018975,2]
[420139939,1775713846870,-31438.19364566,0.00018975,2]
[420139940,1775713846880,-730.18367194,0.00019,15]